[Event "Titled Tuesday Blitz July 11 Early 2023"]
[White "Jarovinsky, Alexey"]
[Black "Rottenwohrer Suarez, Juan"]
[WhiteFideId "14115131"]
[BlackFideId "32068182"]
[WhiteElo "2718"]
[BlackElo "2549"]
[Result "1-0"]
[Round "6"]
[TimeControl "180+2"]
[Date "2023.07.11"]
[WhiteClock "0:00:02"]
[BlackClock "0:00:00"]
[Board "56"]

1. Nc3 {[%clk 0:03:00]}  c5 {[%clk 0:02:59]} 2. e4 {[%clk 0:02:59]}  g6 {[%clk 0:02:59]} 3. g3 {[%clk 0:02:59]}  Nc6 {[%clk 0:02:59]} 4. Bg2 {[%clk 0:02:59]}  Bg7 {[%clk 0:03:00]} 5. d3 {[%clk 0:02:58]}  Rb8 {[%clk 0:03:00]} 6. Be3 {[%clk 0:02:37]}  d6 {[%clk 0:03:00]} 7. Qd2 {[%clk 0:02:32]}  b5 {[%clk 0:03:00]} 8. Nge2 {[%clk 0:02:28]}  a5 {[%clk 0:02:56]} 9. O-O {[%clk 0:02:26]}  Nf6 {[%clk 0:02:52]} 10. Bh6 {[%clk 0:02:25]}  O-O {[%clk 0:02:41]} 11. Bxg7 {[%clk 0:02:23]}  Kxg7 {[%clk 0:02:42]} 12. h3 {[%clk 0:02:14]}  b4 {[%clk 0:02:36]} 13. Nd1 {[%clk 0:02:07]}  Nd4 {[%clk 0:02:32]} 14. f4 {[%clk 0:01:59]}  Ba6 {[%clk 0:02:10]} 15. Ne3 {[%clk 0:01:58]}  Nh5 {[%clk 0:01:58]} 16. Kh2 {[%clk 0:01:53]}  f5 {[%clk 0:01:42]} 17. exf5 {[%clk 0:01:41]}  gxf5 {[%clk 0:01:40]} 18. c3 {[%clk 0:01:36]}  bxc3 {[%clk 0:01:32]} 19. bxc3 {[%clk 0:01:37]}  Ne6 {[%clk 0:01:06]} 20. Bf3 {[%clk 0:01:25]}  Qe8 {[%clk 0:00:55]} 21. Rab1 {[%clk 0:01:23]}  Rxb1 {[%clk 0:00:48]} 22. Rxb1 {[%clk 0:01:24]}  Nc7 {[%clk 0:00:48]} 23. d4 {[%clk 0:01:13]}  cxd4 {[%clk 0:00:23]} 24. Nxd4 {[%clk 0:01:06]}  e6 {[%clk 0:00:16]} 25. Qd1 {[%clk 0:01:00]}  Nf6 {[%clk 0:00:13]} 26. Rb6 {[%clk 0:00:49]}  d5 {[%clk 0:00:12]} 27. Nxe6+ {[%clk 0:00:36]}  Nxe6 {[%clk 0:00:08]} 28. Rxa6 {[%clk 0:00:34]}  Nc5 {[%clk 0:00:07]} 29. Nxf5+ {[%clk 0:00:32]}  Kh8 {[%clk 0:00:04]} 30. Rxa5 {[%clk 0:00:13]}  Nce4 {[%clk 0:00:02]} 31. Qd4 {[%clk 0:00:12]}  Qe6 {[%clk 0:00:01]} 32. g4 {[%clk 0:00:11]}  Qd7 {[%clk 0:00:01]} 33. Ra7 {[%clk 0:00:10]}  Qe6 {[%clk 0:00:01]} 34. Re7 {[%clk 0:00:09]}  Qc8 {[%clk 0:00:01]} 35. Bxe4 {[%clk 0:00:05]}  dxe4 {[%clk 0:00:01]} 36. c4 {[%clk 0:00:04]}  Kg8 {[%clk 0:00:01]} 37. Kg3 {[%clk 0:00:04]}  Kh8 {[%clk 0:00:01]} 38. Kh4 {[%clk 0:00:03]}  Kg8 {[%clk 0:00:01]} 39. c5 {[%clk 0:00:03]}  Kh8 {[%clk 0:00:02]} 40. Kg3 {[%clk 0:00:02]}  Kg8 {[%clk 0:00:02]} 41. Nd6 {[%clk 0:00:02]}  Qa6 {[%clk 0:00:02]} 42. Qe5 {[%clk 0:00:02]}  Qe2 {[%clk 0:00:01]} 43. Kh4 {[%clk 0:00:02]}  Qf2+ {[%clk 0:00:01]} 44. Kg5 {[%clk 0:00:02]}  h6+ {[%clk 0:00:01]} 45. Kg6 {[%clk 0:00:02]}  Qh4 {[%clk 0:00:01]} 46. Rg7+ {[%clk 0:00:02]}  Kh8 {[%clk 0:00:02]} 47. Nf7+ {[%clk 0:00:02]}  Rxf7 {[%clk 0:00:00]} 48. Qb8+ {[%clk 0:00:02]} 1-0


[Site "https://www.chess.com"]

[Event "Titled Tuesday Blitz July 11 Early 2023"]
[White "Jaracz, Pawel"]
[Black "Papayan, Oleg"]
[WhiteFideId "1102222"]
[BlackFideId "4193911"]
[WhiteElo "2698"]
[BlackElo "2545"]
[Result "1-0"]
[Round "6"]
[TimeControl "180+2"]
[Date "2023.07.11"]
[WhiteClock "0:01:11"]
[BlackClock "0:00:00"]
[Board "57"]

1. e4 {[%clk 0:02:56]}  e6 {[%clk 0:03:00]} 2. d4 {[%clk 0:02:55]}  d5 {[%clk 0:03:01]} 3. Nc3 {[%clk 0:02:53]}  Nf6 {[%clk 0:02:57]} 4. e5 {[%clk 0:02:52]}  Nfd7 {[%clk 0:02:57]} 5. f4 {[%clk 0:02:52]}  c5 {[%clk 0:02:57]} 6. Nf3 {[%clk 0:02:53]}  Nc6 {[%clk 0:02:58]} 7. Be3 {[%clk 0:02:53]}  cxd4 {[%clk 0:02:56]} 8. Nxd4 {[%clk 0:02:52]}  Qb6 {[%clk 0:02:57]} 9. Qd2 {[%clk 0:02:48]}  Qxb2 {[%clk 0:02:51]} 10. Rb1 {[%clk 0:02:48]}  Qa3 {[%clk 0:02:38]} 11. Bb5 {[%clk 0:02:38]}  a6 {[%clk 0:01:56]} 12. Bxc6 {[%clk 0:02:29]}  bxc6 {[%clk 0:01:55]} 13. Nxc6 {[%clk 0:02:29]}  Bc5 {[%clk 0:01:40]} 14. Rb3 {[%clk 0:02:06]}  Bxe3 {[%clk 0:01:40]} 15. Rxa3 {[%clk 0:01:57]}  Bxd2+ {[%clk 0:01:40]} 16. Kxd2 {[%clk 0:01:58]}  Nb6 {[%clk 0:01:30]} 17. Na5 {[%clk 0:01:53]}  g5 {[%clk 0:00:25]} 18. Rb1 {[%clk 0:01:48]}  Nd7 {[%clk 0:00:24]} 19. g3 {[%clk 0:01:47]}  Rg8 {[%clk 0:00:22]} 20. Nc6 {[%clk 0:01:33]}  gxf4 {[%clk 0:00:22]} 21. Nb5 {[%clk 0:01:30]}  axb5 {[%clk 0:00:09]} 22. Rxa8 {[%clk 0:01:29]}  Nb6 {[%clk 0:00:10]} 23. Rb8 {[%clk 0:01:23]}  Nc4+ {[%clk 0:00:10]} 24. Kc3 {[%clk 0:01:21]}  Kd7 {[%clk 0:00:11]} 25. Na7 {[%clk 0:01:20]}  fxg3 {[%clk 0:00:11]} 26. Rxc8 {[%clk 0:01:19]}  Rxc8 {[%clk 0:00:11]} 27. Nxc8 {[%clk 0:01:19]}  Kxc8 {[%clk 0:00:11]} 28. hxg3 {[%clk 0:01:19]}  Nxe5 {[%clk 0:00:12]} 29. Rxb5 {[%clk 0:01:18]}  Nc4 {[%clk 0:00:04]} 30. a4 {[%clk 0:01:17]}  Nd6 {[%clk 0:00:05]} 31. Rb1 {[%clk 0:01:14]}  Ne4+ {[%clk 0:00:05]} 32. Kd4 {[%clk 0:01:13]}  Nxg3 {[%clk 0:00:03]} 33. a5 {[%clk 0:01:13]}  Nf5+ {[%clk 0:00:03]} 34. Kc5 {[%clk 0:01:13]}  Kc7 {[%clk 0:00:02]} 35. a6 {[%clk 0:01:13]}  Nd6 {[%clk 0:00:02]} 36. a7 {[%clk 0:01:12]}  Nb7+ {[%clk 0:00:00]} 37. Kd4 {[%clk 0:01:11]} 1-0


[Site "https://www.chess.com"]

[Event "Titled Tuesday Blitz July 11 Early 2023"]
[White "Demin, Vladimir"]
[Black "Materia, Marco"]
[WhiteFideId "4167457"]
[BlackFideId "45150451"]
[WhiteElo "2542"]
[BlackElo "2678"]
[Result "0-1"]
[Round "6"]
[TimeControl "180+2"]
[Date "2023.07.11"]
[WhiteClock "0:01:37"]
[BlackClock "0:02:13"]
[Board "58"]

1. d4 {[%clk 0:03:00]}  Nf6 {[%clk 0:02:59]} 2. Nc3 {[%clk 0:03:00]}  d5 {[%clk 0:02:59]} 3. Bf4 {[%clk 0:03:00]}  c6 {[%clk 0:02:59]} 4. e3 {[%clk 0:03:00]}  g6 {[%clk 0:02:59]} 5. Nf3 {[%clk 0:02:57]}  Bg4 {[%clk 0:02:59]} 6. Be2 {[%clk 0:02:57]}  Nbd7 {[%clk 0:02:58]} 7. Ne5 {[%clk 0:02:55]}  Bxe2 {[%clk 0:02:58]} 8. Qxe2 {[%clk 0:02:56]}  Bg7 {[%clk 0:02:58]} 9. O-O-O {[%clk 0:02:55]}  Nh5 {[%clk 0:02:57]} 10. Nxd7 {[%clk 0:02:52]}  Nxf4 {[%clk 0:02:56]} 11. exf4 {[%clk 0:02:53]}  Qxd7 {[%clk 0:02:56]} 12. h4 {[%clk 0:02:52]}  h5 {[%clk 0:02:56]} 13. Rhe1 {[%clk 0:02:50]}  e6 {[%clk 0:02:55]} 14. Na4 {[%clk 0:02:50]}  O-O-O {[%clk 0:02:54]} 15. Nc5 {[%clk 0:02:50]}  Qc7 {[%clk 0:02:54]} 16. Qe3 {[%clk 0:02:50]}  b6 {[%clk 0:02:51]} 17. Nd3 {[%clk 0:02:48]}  Kb7 {[%clk 0:02:49]} 18. Ne5 {[%clk 0:02:46]}  c5 {[%clk 0:02:47]} 19. Rd3 {[%clk 0:02:41]}  Bxe5 {[%clk 0:02:41]} 20. fxe5 {[%clk 0:02:39]}  c4 {[%clk 0:02:41]} 21. Ra3 {[%clk 0:02:38]}  b5 {[%clk 0:02:41]} 22. Qf4 {[%clk 0:02:37]}  a5 {[%clk 0:02:38]} 23. Rf3 {[%clk 0:02:37]}  Rd7 {[%clk 0:02:37]} 24. Qf6 {[%clk 0:02:29]}  Ra8 {[%clk 0:02:32]} 25. Rd1 {[%clk 0:02:12]}  b4 {[%clk 0:02:32]} 26. Kd2 {[%clk 0:02:12]}  a4 {[%clk 0:02:24]} 27. Ke1 {[%clk 0:02:11]}  b3 {[%clk 0:02:19]} 28. cxb3 {[%clk 0:02:10]}  axb3 {[%clk 0:02:20]} 29. axb3 {[%clk 0:02:10]}  Ra2 {[%clk 0:02:20]} 30. bxc4 {[%clk 0:01:57]}  Qxc4 {[%clk 0:02:18]} 31. Rc3 {[%clk 0:01:54]}  Qb4 {[%clk 0:02:18]} 32. Qh8 {[%clk 0:01:53]}  Rc7 {[%clk 0:02:16]} 33. Kf1 {[%clk 0:01:50]}  Rxc3 {[%clk 0:02:13]} 34. bxc3 {[%clk 0:01:37]}  Qb2 {[%clk 0:02:13]} 0-1


[Site "https://www.chess.com"]

[Event "Titled Tuesday Blitz July 11 Early 2023"]
[White "Michalczak, Thomas"]
[Black "Kantans, Toms"]
[WhiteFideId "4622634"]
[BlackFideId "11602945"]
[WhiteElo "2537"]
[BlackElo "2665"]
[Result "1-0"]
[Round "6"]
[TimeControl "180+2"]
[Date "2023.07.11"]
[WhiteClock "0:00:30"]
[BlackClock "0:00:00"]
[Board "60"]

1. e4 {[%clk 0:03:00]}  c5 {[%clk 0:02:58]} 2. c3 {[%clk 0:03:00]}  Nf6 {[%clk 0:02:58]} 3. e5 {[%clk 0:03:00]}  Nd5 {[%clk 0:02:58]} 4. Nf3 {[%clk 0:03:00]}  Nc6 {[%clk 0:02:58]} 5. d4 {[%clk 0:03:01]}  cxd4 {[%clk 0:02:59]} 6. Bc4 {[%clk 0:03:01]}  Nb6 {[%clk 0:02:58]} 7. Bb3 {[%clk 0:03:01]}  d5 {[%clk 0:02:58]} 8. exd6 {[%clk 0:03:01]}  Qxd6 {[%clk 0:02:58]} 9. O-O {[%clk 0:03:01]}  Be6 {[%clk 0:02:55]} 10. Na3 {[%clk 0:03:00]}  Bxb3 {[%clk 0:02:50]} 11. Qxb3 {[%clk 0:02:57]}  e6 {[%clk 0:02:44]} 12. Nb5 {[%clk 0:02:56]}  Qd7 {[%clk 0:02:45]} 13. Rd1 {[%clk 0:02:55]}  Be7 {[%clk 0:02:15]} 14. Nfxd4 {[%clk 0:02:50]}  Nxd4 {[%clk 0:02:14]} 15. Nxd4 {[%clk 0:02:42]}  O-O {[%clk 0:01:57]} 16. Nf5 {[%clk 0:02:33]}  Qc7 {[%clk 0:01:49]} 17. Nxe7+ {[%clk 0:02:31]}  Qxe7 {[%clk 0:01:50]} 18. Be3 {[%clk 0:02:29]}  Nd5 {[%clk 0:01:48]} 19. Bd4 {[%clk 0:02:29]}  Rfc8 {[%clk 0:01:29]} 20. c4 {[%clk 0:02:29]}  Nf6 {[%clk 0:01:24]} 21. Qd3 {[%clk 0:02:10]}  a6 {[%clk 0:01:03]} 22. b3 {[%clk 0:02:09]}  Rd8 {[%clk 0:00:48]} 23. Qf3 {[%clk 0:02:09]}  Ne8 {[%clk 0:00:44]} 24. Bb6 {[%clk 0:02:02]}  Rxd1+ {[%clk 0:00:43]} 25. Rxd1 {[%clk 0:02:01]}  f6 {[%clk 0:00:42]} 26. Qd3 {[%clk 0:01:59]}  h6 {[%clk 0:00:22]} 27. Qd7 {[%clk 0:01:58]}  Kf8 {[%clk 0:00:18]} 28. Bd8 {[%clk 0:01:35]}  Qxd7 {[%clk 0:00:16]} 29. Rxd7 {[%clk 0:01:36]}  b5 {[%clk 0:00:16]} 30. c5 {[%clk 0:01:35]}  Rc8 {[%clk 0:00:15]} 31. b4 {[%clk 0:01:29]}  Rc6 {[%clk 0:00:10]} 32. Be7+ {[%clk 0:01:24]}  Kg8 {[%clk 0:00:10]} 33. g3 {[%clk 0:01:11]}  e5 {[%clk 0:00:10]} 34. Kg2 {[%clk 0:01:09]}  Kf7 {[%clk 0:00:09]} 35. Bd8+ {[%clk 0:01:01]}  Kg8 {[%clk 0:00:07]} 36. Kf3 {[%clk 0:00:57]}  f5 {[%clk 0:00:06]} 37. Ke3 {[%clk 0:00:56]}  Nf6 {[%clk 0:00:05]} 38. Bxf6 {[%clk 0:00:42]}  gxf6 {[%clk 0:00:06]} 39. Rb7 {[%clk 0:00:39]}  Re6 {[%clk 0:00:04]} 40. Rb6 {[%clk 0:00:39]}  Kf7 {[%clk 0:00:04]} 41. Rxe6 {[%clk 0:00:30]}  Kxe6 {[%clk 0:00:05]} 42. Kf3 {[%clk 0:00:30]}  Kd5 {[%clk 0:00:04]} 43. Kg2 {[%clk 0:00:30]}  a5 {[%clk 0:00:02]} 44. a3 {[%clk 0:00:30]}  axb4 {[%clk 0:00:03]} 45. axb4 {[%clk 0:00:30]}  Kc6 {[%clk 0:00:00]} 46. Kh3 {[%clk 0:00:30]} 1-0


[Site "https://www.chess.com"]

[Event "Titled Tuesday Blitz July 11 Early 2023"]
[White "Tokman, Ariel"]
[Black "Oleksiyenko, Mykhaylo"]
[WhiteFideId "117420"]
[BlackFideId "4152417"]
[WhiteElo "2533"]
[BlackElo "2658"]
[Result "1/2-1/2"]
[Round "6"]
[TimeControl "180+2"]
[Date "2023.07.11"]
[WhiteClock "0:00:03"]
[BlackClock "0:00:20"]
[Board "61"]

1. d4 {[%clk 0:03:00]}  d5 {[%clk 0:03:00]} 2. c4 {[%clk 0:02:59]}  e6 {[%clk 0:02:59]} 3. Nf3 {[%clk 0:02:57]}  Nf6 {[%clk 0:03:00]} 4. e3 {[%clk 0:02:56]}  Be7 {[%clk 0:02:58]} 5. Nc3 {[%clk 0:02:55]}  O-O {[%clk 0:02:58]} 6. Bd2 {[%clk 0:02:54]}  b6 {[%clk 0:02:58]} 7. Bd3 {[%clk 0:02:53]}  Bb7 {[%clk 0:02:57]} 8. cxd5 {[%clk 0:02:52]}  Nxd5 {[%clk 0:02:57]} 9. O-O {[%clk 0:02:51]}  c5 {[%clk 0:02:56]} 10. dxc5 {[%clk 0:02:50]}  Bxc5 {[%clk 0:02:46]} 11. Nxd5 {[%clk 0:02:41]}  Qxd5 {[%clk 0:02:45]} 12. Bc3 {[%clk 0:02:41]}  Rd8 {[%clk 0:02:41]} 13. Be2 {[%clk 0:02:33]}  Qxd1 {[%clk 0:02:36]} 14. Rfxd1 {[%clk 0:02:34]}  Nc6 {[%clk 0:02:36]} 15. Kf1 {[%clk 0:02:12]}  f6 {[%clk 0:02:32]} 16. a3 {[%clk 0:01:47]}  Kf7 {[%clk 0:02:23]} 17. Rac1 {[%clk 0:01:47]}  Rac8 {[%clk 0:02:14]} 18. Rxd8 {[%clk 0:01:44]}  Rxd8 {[%clk 0:02:14]} 19. b4 {[%clk 0:01:40]}  Be7 {[%clk 0:02:14]} 20. Nd4 {[%clk 0:01:39]}  Nxd4 {[%clk 0:01:58]} 21. Bxd4 {[%clk 0:01:40]}  Bd6 {[%clk 0:01:58]} 22. h4 {[%clk 0:01:27]}  e5 {[%clk 0:01:57]} 23. Bb2 {[%clk 0:01:23]}  a5 {[%clk 0:01:53]} 24. bxa5 {[%clk 0:01:17]}  bxa5 {[%clk 0:01:53]} 25. Bb5 {[%clk 0:00:55]}  Ke7 {[%clk 0:01:50]} 26. a4 {[%clk 0:00:52]}  Rc8 {[%clk 0:01:40]} 27. f3 {[%clk 0:00:39]}  Rxc1+ {[%clk 0:01:36]} 28. Bxc1 {[%clk 0:00:40]}  Bb4 {[%clk 0:01:36]} 29. Ke2 {[%clk 0:00:40]}  e4 {[%clk 0:01:34]} 30. f4 {[%clk 0:00:34]}  Bc8 {[%clk 0:01:29]} 31. Bd2 {[%clk 0:00:32]}  Bg4+ {[%clk 0:01:27]} 32. Ke1 {[%clk 0:00:30]}  Kd6 {[%clk 0:01:02]} 33. Bxb4+ {[%clk 0:00:30]}  axb4 {[%clk 0:01:03]} 34. Kd2 {[%clk 0:00:30]}  Kc5 {[%clk 0:01:03]} 35. Kc2 {[%clk 0:00:26]}  Be6 {[%clk 0:01:01]} 36. Be2 {[%clk 0:00:16]}  Kb6 {[%clk 0:00:58]} 37. Bb5 {[%clk 0:00:11]}  Ka5 {[%clk 0:00:58]} 38. Bc6 {[%clk 0:00:04]}  h6 {[%clk 0:00:57]} 39. Kb2 {[%clk 0:00:04]}  Bc4 {[%clk 0:00:54]} 40. g3 {[%clk 0:00:02]}  g5 {[%clk 0:00:45]} 41. hxg5 {[%clk 0:00:02]}  hxg5 {[%clk 0:00:44]} 42. Kc2 {[%clk 0:00:03]}  Be6 {[%clk 0:00:43]} 43. Kb2 {[%clk 0:00:03]}  Bf7 {[%clk 0:00:43]} 44. Kc2 {[%clk 0:00:03]}  Bh5 {[%clk 0:00:43]} 45. Kb2 {[%clk 0:00:03]}  Bd1 {[%clk 0:00:43]} 46. Bxe4 {[%clk 0:00:03]}  Kxa4 {[%clk 0:00:43]} 47. Bd5 {[%clk 0:00:03]}  Kb5 {[%clk 0:00:42]} 48. Kc1 {[%clk 0:00:02]}  Bg4 {[%clk 0:00:40]} 49. fxg5 {[%clk 0:00:03]}  fxg5 {[%clk 0:00:40]} 50. Kd2 {[%clk 0:00:03]}  Kc5 {[%clk 0:00:41]} 51. Bb3 {[%clk 0:00:03]}  Bf5 {[%clk 0:00:40]} 52. Ke2 {[%clk 0:00:02]}  Be4 {[%clk 0:00:40]} 53. Kd2 {[%clk 0:00:03]}  Bd5 {[%clk 0:00:41]} 54. Bc2 {[%clk 0:00:03]}  b3 {[%clk 0:00:41]} 55. Bb1 {[%clk 0:00:03]}  Kc4 {[%clk 0:00:41]} 56. Bd3+ {[%clk 0:00:03]}  Kb4 {[%clk 0:00:41]} 57. Bf5 {[%clk 0:00:03]}  Ka3 {[%clk 0:00:33]} 58. e4 {[%clk 0:00:01]}  Bc4 {[%clk 0:00:29]} 59. e5 {[%clk 0:00:02]}  b2 {[%clk 0:00:29]} 60. Kc3 {[%clk 0:00:02]}  Ba2 {[%clk 0:00:29]} 61. Kd4 {[%clk 0:00:02]}  Kb4 {[%clk 0:00:27]} 62. Be4 {[%clk 0:00:02]}  Kb5 {[%clk 0:00:25]} 63. Bf5 {[%clk 0:00:02]}  Kc6 {[%clk 0:00:25]} 64. Ke3 {[%clk 0:00:02]}  Kd5 {[%clk 0:00:25]} 65. e6 {[%clk 0:00:02]}  Kd6 {[%clk 0:00:25]} 66. Kf3 {[%clk 0:00:02]}  Ke7 {[%clk 0:00:25]} 67. Kg4 {[%clk 0:00:02]}  Kf6 {[%clk 0:00:25]} 68. e7 {[%clk 0:00:03]}  Be6 {[%clk 0:00:24]} 69. Bxe6 {[%clk 0:00:03]}  b1=Q {[%clk 0:00:24]} 70. e8=Q {[%clk 0:00:03]}  Qe4+ {[%clk 0:00:24]} 71. Kh3 {[%clk 0:00:02]}  Qh1+ {[%clk 0:00:24]} 72. Kg4 {[%clk 0:00:03]}  Qe4+ {[%clk 0:00:24]} 73. Kh3 {[%clk 0:00:03]}  Qh1+ {[%clk 0:00:19]} 74. Kg4 {[%clk 0:00:03]}  Qd1+ {[%clk 0:00:20]} 75. Kh3 {[%clk 0:00:03]}  Qh1+ {[%clk 0:00:20]} 1/2-1/2


[Site "https://www.chess.com"]

[Event "Titled Tuesday Blitz July 11 Early 2023"]
[White "Arabidze, Meri"]
[Black "FromTexas54"]
[WhiteFideId "13604040"]
[WhiteElo "2643"]
[BlackElo "2518"]
[Result "1-0"]
[Round "6"]
[TimeControl "180+2"]
[Date "2023.07.11"]
[WhiteClock "0:00:27"]
[BlackClock "0:00:00"]
[Board "65"]

1. b3 {[%clk 0:03:00]}  e5 {[%clk 0:02:59]} 2. Bb2 {[%clk 0:03:01]}  Nc6 {[%clk 0:02:59]} 3. c4 {[%clk 0:03:02]}  Nf6 {[%clk 0:02:58]} 4. g3 {[%clk 0:03:02]}  d5 {[%clk 0:02:55]} 5. Bg2 {[%clk 0:03:02]}  Be6 {[%clk 0:02:53]} 6. d3 {[%clk 0:02:47]}  Bb4+ {[%clk 0:02:48]} 7. Nd2 {[%clk 0:02:46]}  O-O {[%clk 0:02:48]} 8. cxd5 {[%clk 0:02:44]}  Bxd5 {[%clk 0:02:44]} 9. Nf3 {[%clk 0:02:44]}  e4 {[%clk 0:02:36]} 10. Bxf6 {[%clk 0:02:25]}  Qxf6 {[%clk 0:02:34]} 11. dxe4 {[%clk 0:02:25]}  Bxe4 {[%clk 0:02:32]} 12. O-O {[%clk 0:02:25]}  Bg6 {[%clk 0:02:25]} 13. e4 {[%clk 0:02:05]}  Rad8 {[%clk 0:02:22]} 14. Qc2 {[%clk 0:01:49]}  Bxd2 {[%clk 0:02:00]} 15. Nxd2 {[%clk 0:01:50]}  Nd4 {[%clk 0:02:00]} 16. Qd1 {[%clk 0:01:30]}  Qb6 {[%clk 0:01:47]} 17. Kh1 {[%clk 0:01:26]}  Qb4 {[%clk 0:01:43]} 18. Nc4 {[%clk 0:01:26]}  Ne6 {[%clk 0:01:41]} 19. Qe1 {[%clk 0:01:22]}  Qxe1 {[%clk 0:01:27]} 20. Rfxe1 {[%clk 0:01:23]}  Rd4 {[%clk 0:01:28]} 21. Rad1 {[%clk 0:01:18]}  Rfd8 {[%clk 0:01:27]} 22. Rxd4 {[%clk 0:01:18]}  Rxd4 {[%clk 0:01:28]} 23. Kg1 {[%clk 0:01:13]}  b5 {[%clk 0:01:20]} 24. Ne5 {[%clk 0:01:12]}  Rd2 {[%clk 0:01:21]} 25. f4 {[%clk 0:01:07]}  f6 {[%clk 0:01:14]} 26. Nc6 {[%clk 0:01:07]}  Be8 {[%clk 0:01:08]} 27. Nxa7 {[%clk 0:00:53]}  Rxa2 {[%clk 0:01:03]} 28. Nc8 {[%clk 0:00:53]}  Kf7 {[%clk 0:00:52]} 29. f5 {[%clk 0:00:53]}  Nd4 {[%clk 0:00:47]} 30. e5 {[%clk 0:00:52]}  fxe5 {[%clk 0:00:37]} 31. Rxe5 {[%clk 0:00:53]}  Re2 {[%clk 0:00:35]} 32. Rc5 {[%clk 0:00:31]}  Nxb3 {[%clk 0:00:10]} 33. Rxc7+ {[%clk 0:00:31]}  Kf6 {[%clk 0:00:11]} 34. Nd6 {[%clk 0:00:31]}  Bf7 {[%clk 0:00:10]} 35. Rxf7+ {[%clk 0:00:30]}  Kg5 {[%clk 0:00:10]} 36. Rxg7+ {[%clk 0:00:29]}  Kf6 {[%clk 0:00:10]} 37. Rf7+ {[%clk 0:00:29]}  Kg5 {[%clk 0:00:10]} 38. Ne4+ {[%clk 0:00:29]}  Kh6 {[%clk 0:00:09]} 39. f6 {[%clk 0:00:29]}  Nd4 {[%clk 0:00:09]} 40. Rd7 {[%clk 0:00:27]}  Re1+ {[%clk 0:00:08]} 41. Kf2 {[%clk 0:00:27]}  Re2+ {[%clk 0:00:00]} 42. Kf1 {[%clk 0:00:27]} 1-0


[Site "https://www.chess.com"]

[Event "Titled Tuesday Blitz July 11 Early 2023"]
[White "Osmak, Yuliia"]
[Black "Iskusnyh, Sergei"]
[WhiteFideId "14101602"]
[BlackFideId "4120027"]
[WhiteElo "2513"]
[BlackElo "2618"]
[Result "0-1"]
[Round "6"]
[TimeControl "180+2"]
[Date "2023.07.11"]
[WhiteClock "0:00:00"]
[BlackClock "0:00:05"]
[Board "70"]

1. d4 {[%clk 0:02:38]}  d5 {[%clk 0:02:53]} 2. Nf3 {[%clk 0:02:36]}  Nf6 {[%clk 0:02:53]} 3. c4 {[%clk 0:02:33]}  c6 {[%clk 0:02:53]} 4. Nc3 {[%clk 0:02:29]}  e6 {[%clk 0:02:52]} 5. Bg5 {[%clk 0:02:27]}  Nbd7 {[%clk 0:02:51]} 6. e3 {[%clk 0:02:26]}  Be7 {[%clk 0:02:51]} 7. Qc2 {[%clk 0:02:21]}  h6 {[%clk 0:02:51]} 8. Bh4 {[%clk 0:02:18]}  O-O {[%clk 0:02:51]} 9. cxd5 {[%clk 0:02:11]}  Nxd5 {[%clk 0:02:39]} 10. Bxe7 {[%clk 0:02:09]}  Qxe7 {[%clk 0:02:39]} 11. Bc4 {[%clk 0:01:59]}  N5b6 {[%clk 0:02:30]} 12. Bb3 {[%clk 0:01:55]}  c5 {[%clk 0:02:26]} 13. Qe2 {[%clk 0:01:49]}  e5 {[%clk 0:02:16]} 14. d5 {[%clk 0:01:32]}  e4 {[%clk 0:02:13]} 15. Nd2 {[%clk 0:01:30]}  Nf6 {[%clk 0:02:02]} 16. O-O {[%clk 0:01:26]}  Bg4 {[%clk 0:01:59]} 17. Qb5 {[%clk 0:01:20]}  Bd7 {[%clk 0:01:42]} 18. Qa5 {[%clk 0:01:18]}  Rfc8 {[%clk 0:01:14]} 19. h3 {[%clk 0:01:11]}  Qe5 {[%clk 0:01:03]} 20. Rad1 {[%clk 0:00:55]}  Re8 {[%clk 0:00:22]} 21. Qxc5 {[%clk 0:00:51]}  Qg5 {[%clk 0:00:22]} 22. Kh1 {[%clk 0:00:47]}  Qh4 {[%clk 0:00:22]} 23. Qd6 {[%clk 0:00:39]}  Rad8 {[%clk 0:00:17]} 24. Qg3 {[%clk 0:00:33]}  Qg5 {[%clk 0:00:17]} 25. Qxg5 {[%clk 0:00:29]}  hxg5 {[%clk 0:00:17]} 26. Rfe1 {[%clk 0:00:16]}  Bf5 {[%clk 0:00:17]} 27. Nf1 {[%clk 0:00:13]}  Nc8 {[%clk 0:00:15]} 28. Ng3 {[%clk 0:00:13]}  Bg6 {[%clk 0:00:15]} 29. Rd4 {[%clk 0:00:10]}  Nd6 {[%clk 0:00:15]} 30. Red1 {[%clk 0:00:09]}  Rc8 {[%clk 0:00:15]} 31. Ba4 {[%clk 0:00:09]}  Red8 {[%clk 0:00:14]} 32. Bb3 {[%clk 0:00:08]}  a6 {[%clk 0:00:14]} 33. Kg1 {[%clk 0:00:07]}  Rc5 {[%clk 0:00:14]} 34. a3 {[%clk 0:00:07]}  Rdc8 {[%clk 0:00:14]} 35. Ba2 {[%clk 0:00:06]}  Kf8 {[%clk 0:00:14]} 36. Bb1 {[%clk 0:00:05]}  Re8 {[%clk 0:00:12]} 37. Rb4 {[%clk 0:00:04]}  b5 {[%clk 0:00:11]} 38. Rbd4 {[%clk 0:00:04]}  Nc4 {[%clk 0:00:11]} 39. b4 {[%clk 0:00:02]}  Rcc8 {[%clk 0:00:11]} 40. Ncxe4 {[%clk 0:00:02]}  Nxa3 {[%clk 0:00:07]} 41. Nxf6 {[%clk 0:00:02]}  gxf6 {[%clk 0:00:07]} 42. Bxg6 {[%clk 0:00:03]}  fxg6 {[%clk 0:00:08]} 43. d6 {[%clk 0:00:03]}  Red8 {[%clk 0:00:08]} 44. d7 {[%clk 0:00:03]}  Rc4 {[%clk 0:00:08]} 45. Ne4 {[%clk 0:00:03]}  Ke7 {[%clk 0:00:07]} 46. Nc5 {[%clk 0:00:02]}  Rxd4 {[%clk 0:00:05]} 47. Rxd4 {[%clk 0:00:03]}  Nc2 {[%clk 0:00:06]} 48. Rd2 {[%clk 0:00:03]}  Nxb4 {[%clk 0:00:06]} 49. Rd4 {[%clk 0:00:02]}  Nc6 {[%clk 0:00:06]} 50. Rd5 {[%clk 0:00:02]}  Ne5 {[%clk 0:00:05]} 51. Nxa6 {[%clk 0:00:01]}  Rxd7 {[%clk 0:00:05]} 52. Rxb5 {[%clk 0:00:01]}  Rd1+ {[%clk 0:00:05]} 53. Kh2 {[%clk 0:00:01]}  Nd3 {[%clk 0:00:06]} 54. f3 {[%clk 0:00:01]}  Ne1 {[%clk 0:00:05]} 55. e4 {[%clk 0:00:00]}  Rd2 {[%clk 0:00:05]} 0-1


[Site "https://www.chess.com"]